[Event "76th Montenegro Championship 2024"]
[Site "Podgorica"]
[Date "2024.02.09"]
[Round "4.14"]
[White "Nenezic, Danilo"]
[Black "Djurovic, Peko"]
[Result "0-1"]
[ECO "B33"]
[WhiteElo "2086"]
[BlackElo "2332"]
[Annotator "TA"]
[PlyCount "90"]
[EventDate "2024.02.06"]
[EventType "swiss"]
[EventCountry "MNE"]
[SourceTitle "playchess.com"]
[Source "ChessBase"]
[SourceQuality "1"]
[TimeControl "40/5400+30:1800+30"]

{[%evp 25,90,25,31,5,0,0,5,8,7,-6,0,-9,0,0,10,-39,-34,-50,0,-25,-28,-102,-112,-160,-136,-113,-108,-131,-113,-228,-132,-158,-157,-194,-170,-188,-148,-184,-150,-298,-293,-251,-195,-404,-415,-356,-334,-325,-327,-404,-370,-446,-437,-656,-656,-1185,-1158,-1146,-1097,-2485,-1635,-1675,-1566,-29973,-3012,-29984,-29984]} 1. e4 {[%emt 0:00:22]} c5 {[%emt 0:00:08]} 2. Nf3 {[%emt 0:00:37]} Nc6 {[%emt 0:00:10]} 3. d4 {[%emt 0:00:17]} cxd4 {[%emt 0:00:08]} 4. Nxd4 {[%emt 0:00:18]} Nf6 {[%emt 0:00:09]} 5. Nc3 {[%emt 0:00:20]} e5 {[%emt 0:00:21]} 6. Ndb5 {[%emt 0:00:12]} d6 {[%emt 0:00:08]} 7. Bg5 {[%emt 0:00:42]} a6 {[%emt 0:00:16]} 8. Na3 {[%emt 0:00:12]} b5 {[%emt 0:00:13]} 9. Nd5 {[%emt 0:00:52]} Be7 {[%emt 0:00:08]} 10. Bxf6 {[%emt 0:00:42]} Bxf6 {[%emt 0:00:09]} 11. c3 {[%emt 0:00:13]} Bg5 {[%emt 0:00:06]} 12. Nc2 {[%emt 0:00:27]} O-O {[%emt 0:00:07]} 13. h4 {[%emt 0:00:39]} Bh6 {[%emt 0:00:15]} 14. Nce3 {[%emt 0:05:08]} Bxe3 {[%emt 0:03:43]} 15. Nxe3 {[%emt 0:00:41]} Ne7 {[%emt 0:00:14]} 16. Be2 {[%emt 0:06:52] The position is equal.} Be6 {[%emt 0:03:13]} 17. Bf3 {[%emt 0:04:39]} a5 {[%emt 0:01:35]} 18. Qd2 {[%emt 0:06:11]} Qb6 {[%emt 0:02:50]} 19. O-O {[%emt 0:04:55]} b4 {[%emt 0:03:38] [#]} 20. Nf5 {[%emt 0:15:09]} Bxf5 $15 {[%emt 0:06:32]} 21. exf5 {[%emt 0:00:47]} Rac8 {[%emt 0:07:26]} ({Black should try} 21... Rad8 $1 $15) 22. f6 {[%emt 0:03:15]} gxf6 {[%emt 0:01:35][%cal Od6d5]} 23. Rfe1 {[%emt 0:19:38]} (23. cxb4 $11 Qxb4 24. Qh6) 23... d5 $17 {[%emt 1:08:56]} 24. Qh6 {[%emt 0:08:12]} (24. Rac1 $142) 24... Qe6 {[%emt 0:00:30]} 25. cxb4 {[%emt 0:04:56]} axb4 {[%emt 0:00:00]} 26. a3 {[%emt 0:02:21]} Rc2 {[%emt 0:00:00]} 27. Re2 {[%emt 0:03:10] [#]} (27. axb4 Nf5 (27... Rxb2 28. Reb1 $17) 28. Qh5 Ng7 (28... Rxb2 29. Bxd5 Qxd5 30. Qxf5 $14)) (27. Be2 $17 {might work better.} Nf5 (27... Rxb2 $2 28. axb4 Nf5 29. Qh5 $17) 28. Qh5) 27... Rc4 {[%emt 0:00:00]} (27... b3 $1 $19 28. Rxc2 bxc2) 28. g3 {[%emt 0:03:33]} Nf5 {[%emt 0:00:00]} 29. Qh5 {[%emt 0:09:40][%cal Of3d5]} Nd4 {[%emt 0:00:00]} 30. Rd2 {[%emt 0:00:00]} Kg7 {[%emt 0:00:00]} 31. Bg2 {[%emt 0:00:00]} b3 {[%emt 0:00:00] Threatens to win with ...Rfc8.} 32. Re1 {[%emt 0:00:00]} (32. Bf1 $17) 32... Rfc8 $19 {[%emt 0:00:00]} 33. Kh2 {[%emt 0:00:00][%cal Od2d4]} f5 {[%emt 0:00:00]} 34. Rd3 $2 {[%emt 0:00:40]} (34. Qg5+ {was the only defense.} Kh8 35. Qe3) 34... e4 {[%emt 0:00:00]} 35. Rd2 {[%emt 0:00:37]} Nc2 {[%emt 0:00:00]} 36. Red1 {[%emt 0:00:32]} d4 {[%emt 0:00:00]} 37. Bh3 {[%emt 0:00:34]} R8c5 {[%emt 0:00:00] aiming for ...d3.} 38. Qg5+ {[%emt 0:00:29]} Qg6 {[%emt 0:00:00]} 39. Qd8 {[%emt 0:00:24] Dodges Qxg5} (39. Bf1 $142) 39... d3 {[%emt 0:00:00]} 40. g4 {[%emt 0:00:00]} fxg4 {[%emt 0:00:00]} 41. Rg1 {[%emt 0:06:49]} h5 {[%emt 0:01:25] ...Nd4 would now be deadly.} 42. f3 {[%emt 0:01:04]} e3 {[%emt 0:15:26]} 43. Rxd3 {[%emt 0:01:40]} e2 {[%emt 0:00:11]} 44. Rd6 {[%emt 0:01:05]} Qf5 {[%emt 0:00:24] Active counter play!} (44... e1=R 45. Rxg6+ fxg6 46. Rxe1 (46. fxg4 Re2+ 47. Kh1 Re3 $11) 46... Nxe1 47. Qe7+ Kg8 48. fxg4 (48. Qxe1 Rc2+ 49. Kg3 gxh3 $16) 48... Nf3+ 49. Kg3 hxg4 50. Bxg4 $11) 45. fxg4 {[%emt 0:09:27]} Qf2+ {[%emt 0:00:58] Weighted Error Value: White=1.05/Black=0.37.  Mistake:       	White=7     	Black=2      Inaccurate:     	White=1     	---        OK:         	White=4     	Black=11     Best:        	---       	Black=2} ({Weaker is} 45... e1=Q 46. gxf5+) 0-1

[Event "76th Montenegro Championship 2024"]
[Site "Podgorica"]
[Date "2024.02.09"]
[Round "4.15"]
[White "Draganic, Veljko"]
[Black "Kandic, Milojko"]
[Result "1-0"]
[ECO "A09"]
[WhiteElo "2323"]
[BlackElo "2046"]
[Annotator "TA"]
[PlyCount "69"]
[EventDate "2024.02.06"]
[EventType "swiss"]
[EventCountry "MNE"]
[SourceTitle "playchess.com"]
[Source "ChessBase"]
[SourceQuality "1"]
[TimeControl "40/5400+30:1800+30"]

{[%evp 11,69,-7,11,0,60,53,19,31,49,50,117,113,123,123,122,78,160,151,164,165,156,143,234,235,249,249,249,241,281,213,368,365,373,186,429,422,670,652,665,628,741,718,931,930,930,933,965,952,977,947,910,890,901,902,872,897,887,880,932,916]} 1. Nf3 {[%emt 0:03:47]} d5 {[%emt 0:00:19]} 2. g3 {[%emt 0:00:05]} g6 {[%emt 0:01:23]} 3. Bg2 {[%emt 0:00:09]} Bg7 {[%emt 0:00:06]} 4. O-O {[%emt 0:00:04]} e5 {[%emt 0:00:15]} 5. d3 {[%emt 0:00:10]} Ne7 {[%emt 0:03:42]} 6. c4 {[%emt 0:00:50]} d4 {[%emt 0:01:57]} 7. e3 {[%emt 0:03:36]} O-O {[%emt 0:09:21]} (7... Nbc6 $11) 8. exd4 $1 $14 {[%emt 0:01:21]} exd4 {[%emt 0:00:05]} 9. b4 {[%emt 0:01:49][%cal Bb2b4,Bb4b5][%mdl 32] The position is equal.} Na6 {[%emt 0:06:43]} 10. Ba3 {[%emt 0:05:26]} b6 {[%emt 0:05:06]} (10... c5 $14) 11. b5 $16 {[%emt 0:07:26]} Nc5 {[%emt 0:00:45]} 12. Bxc5 {[%emt 0:00:45]} bxc5 {[%emt 0:00:06]} 13. Nbd2 {[%emt 1:11:32]} Qd6 {[%emt 0:06:48]} (13... c6 $142) 14. Ng5 $36 {[%emt 0:00:00][%mdl 2048] Keeping Black busy.} Rb8 {[%emt 0:04:35]} 15. Nge4 {[%emt 0:00:00] A dynamic duo of knights.} Qb6 {[%emt 0:00:20]} 16. Nb3 {[%emt 0:00:00][%cal Oa2a4]} f5 {[%emt 0:08:50]} (16... c6 $16) 17. Nexc5 $18 {[%emt 0:00:00]} f4 {[%emt 0:00:12][%cal Bf5f4,Bf4f3][%mdl 32]} 18. Re1 {[%emt 0:00:00]} Qf6 {[%emt 0:02:21]} 19. Qd2 {[%emt 0:00:00]} f3 {[%emt 0:02:38]} 20. Bf1 {[%emt 0:00:00]} h6 $2 {[%emt 0:13:17] [#]} (20... Qf7 21. Ne4 Nf5) 21. Qa5 {[%emt 0:00:00][%csl LRa7,LRc7]} Nf5 {[%emt 0:04:28]} 22. Re4 {[%emt 0:00:00]} (22. Qxa7 $142 Qb6 23. Qxb6 cxb6 24. Ne6 Bxe6 25. Rxe6) 22... Rb6 {[%emt 0:23:47]} (22... Qb6 23. Qxb6 cxb6) 23. Qxa7 {[%emt 0:00:00] White is clearly winning.} Qg5 {[%emt 0:01:39]} (23... Qf7 $142 24. a4 Kh7) 24. Qxc7 {[%emt 0:00:00]} Rbf6 {[%emt 0:01:09]} 25. Qf4 {[%emt 0:00:00]} (25. Nxd4 R6f7 26. Qb6 Bxd4 (26... Nxd4 27. Rae1 $17) 27. Rxd4 Nxd4 $17) 25... Qh5 {[%emt 0:01:32]} 26. g4 {[%emt 0:00:00]} (26. Nxd4 $2 Nxd4 27. Qd2 Ne2+ (27... Qxc5 $2 28. Rae1 $19) 28. Bxe2 fxe2 (28... Qxc5 29. Bf1 $11) 29. Qxe2 Qxc5 $19) 26... Qg5 {[%emt 0:00:29]} 27. Qxg5 {[%emt 0:00:00]} (27. Qxf3 $2 {perishes.} Ne3 28. Qg3 (28. h4 $2 Qxh4 29. Qg3 Qxg3+ 30. fxg3 Rxf1+ 31. Rxf1 Rxf1+ 32. Kh2 Bxg4 $19) 28... Rxf2 (28... Nxg4 $2 {loses.} 29. h4 $18) (28... Rf3 $2 29. a4 $19) 29. Qxf2 Rxf2 (29... Bxg4 $2 30. Qg3 $18) 30. Kxf2 Qh4+ (30... Nxg4+ 31. Ke1 $17) 31. Kg1 Nxg4 32. Rxg4 Bxg4 $19) 27... hxg5 {[%emt 0:00:04]} 28. gxf5 {[%emt 0:00:00]} gxf5 {[%emt 0:00:05]} 29. Re7 {[%emt 0:00:00]} Rh6 {[%emt 0:00:57]} 30. Rae1 {[%emt 0:00:00]} g4 {[%emt 0:00:57]} 31. Ne6 {[%emt 0:00:00]} Bxe6 {[%emt 0:00:51]} 32. R1xe6 {[%emt 0:00:00]} Rxe6 {[%emt 0:00:29]} 33. Rxe6 {[%emt 0:00:00]} Kf7 {[%emt 0:00:08]} 34. Re1 {[%emt 0:00:00]} Bh6 {[%emt 0:00:27]} 35. Nxd4 {[%emt 0:00:00] Weighted Error Value: White=0.18 (very precise) /Black=0.62.  Mistake:       	White=1     	Black=7      Inaccurate:     	White=1     	---        OK:         	White=9     	Black=4      Best:        	White=1     	---        Strong:       	White=1     	---} 1-0

[Event "76th Montenegro Championship 2024"]
[Site "Podgorica"]
[Date "2024.02.09"]
[Round "4.16"]
[White "Nikac, Predrag"]
[Black "Popovic, Nikola"]
[Result "1-0"]
[ECO "B82"]
[WhiteElo "2304"]
[BlackElo "1433"]
[Annotator "ChessBase"]
[PlyCount "43"]
[EventDate "2024.02.06"]
[EventType "swiss"]
[EventCountry "MNE"]
[SourceTitle "playchess.com"]
[Source "ChessBase"]
[SourceQuality "1"]
[TimeControl "40/5400+30:1800+30"]

1. e4 {[%emt 0:00:12]} c5 {[%emt 0:04:39]} 2. Nf3 {[%emt 0:01:56]} Nc6 {[%emt 0:00:07]} 3. d4 {[%emt 0:00:14]} cxd4 {[%emt 0:00:08]} 4. Nxd4 {[%emt 0:00:06]} Nf6 {[%emt 0:00:12]} 5. Nc3 {[%emt 0:00:20]} d6 {[%emt 0:00:06]} 6. f4 {[%emt 0:00:15]} Qb6 {[%emt 0:04:44]} 7. Nb3 {[%emt 0:03:16]} e6 {[%emt 0:10:02]} 8. Qf3 {[%emt 0:06:30]} Be7 {[%emt 0:02:18]} 9. Be3 {[%emt 0:01:06]} Qc7 {[%emt 0:00:22]} 10. O-O-O {[%emt 0:01:41]} O-O {[%emt 0:01:16]} 11. g4 {[%emt 0:00:13]} Nd7 {[%emt 0:00:10]} 12. g5 {[%emt 0:02:13]} Nc5 {[%emt 0:02:03]} 13. h4 {[%emt 0:03:57]} g6 {[%emt 0:13:16]} 14. h5 {[%emt 0:02:25]} Nxb3+ {[%emt 0:05:21]} 15. axb3 {[%emt 0:00:22]} Na5 {[%emt 0:12:09]} 16. Qh3 {[%emt 0:04:36]} Bd8 {[%emt 0:04:07]} 17. Nb5 {[%emt 0:03:32]} Qe7 {[%emt 0:00:16]} 18. Nxd6 {[%emt 0:00:16]} Bb6 {[%emt 0:05:33]} 19. e5 {[%emt 0:08:47]} Rd8 {[%emt 0:04:56]} 20. Bd3 {[%emt 0:01:49]} Bxe3+ {[%emt 0:01:44]} 21. Qxe3 {[%emt 0:00:10]} Qc7 {[%emt 0:01:24]} 22. Qh3 {[%emt 0:02:24]} 1-0

[Event "76th Montenegro Championship 2024"]
[Site "Podgorica"]
[Date "2024.02.09"]
[Round "4.18"]
[White "Loncar, Milenko"]
[Black "Grbovic, Dino"]
[Result "0-1"]
[ECO "A07"]
[WhiteElo "2026"]
[BlackElo "1946"]
[Annotator "NA RC"]
[PlyCount "110"]
[EventDate "2024.02.06"]
[EventType "swiss"]
[EventCountry "MNE"]
[SourceTitle "playchess.com"]
[Source "ChessBase"]
[SourceQuality "1"]
[TimeControl "40/5400+30:1800+30"]

1. Nf3 Nf6 2. g3 g6 3. Bg2 Bg7 4. d3 d5 5. Bd2 c5 6. Qc1 O-O 7. Bh6 Qa5+ 8. c3 Qb6 9. Bxg7 Kxg7 10. Nbd2 Nc6 11. O-O h6 12. e4 dxe4 13. dxe4 Be6 14. b3 Rfd8 15. Qa3 Rd3 16. Rac1 Rad8 17. Rc2 Qa5 18. Qb2 b5 19. e5 Nd5 20. Ne4 Bf5 21. Nxc5 Rxc3 22. Rxc3 Qxc3 23. Qxc3 Nxc3 24. Re1 Nb4 25. Nh4 Bg4 26. f3 Nc2 27. Rf1 Bc8 28. Rf2 Rd1+ 29. Rf1 g5 30. Rxd1 Nxd1 31. Bf1 gxh4 32. Bxb5 hxg3 33. hxg3 Nd4 34. Bd7 Bxd7 35. Nxd7 Nxf3+ 36. Kg2 Nd4 37. Nc5 Kg6 38. g4 Nc3 39. a4 {[%emt 1:26:25]} a5 {[%emt 1:01:05]} 40. Kf2 {[%emt 0:00:30]} Nd5 {[%emt 0:00:30]} 41. Kg3 {[%emt 0:30:30]} e6 {[%emt 0:30:30]} 42. Kf2 {[%emt 0:00:30]} Nc6 {[%emt 0:00:30]} 43. Nd7 {[%emt 0:00:30]} Kg5 {[%emt 0:00:30]} 44. Kg3 {[%emt 0:00:30]} Ndb4 {[%emt 0:00:30]} 45. Kf3 {[%emt 0:00:30]} Nd3 {[%emt 0:00:30]} 46. Ke4 {[%emt 0:00:30]} Nf2+ {[%emt 0:00:30]} 47. Kf3 {[%emt 0:00:30]} Nxg4 {[%emt 0:00:30]} 48. Ke4 {[%emt 0:00:30]} h5 {[%emt 0:00:30]} 49. Nc5 {[%emt 0:00:30]} h4 {[%emt 0:00:30]} 50. Nb7 {[%emt 0:00:30]} h3 {[%emt 0:00:30]} 51. Kf3 {[%emt 0:00:30]} Kh4 {[%emt 0:00:30]} 52. Nxa5 {[%emt 0:00:30]} Ngxe5+ {[%emt 0:00:30]} 53. Ke2 {[%emt 0:00:30]} Nxa5 {[%emt 0:00:30]} 54. b4 {[%emt 0:00:30]} Nec4 {[%emt 0:00:30]} 55. Kf3 {[%emt 0:00:30]} e5 {[%emt 0:00:30]} 0-1

[Event "76th Montenegro Championship 2024"]
[Site "Podgorica"]
[Date "2024.02.10"]
[Round "5.1"]
[White "Kadric, Denis"]
[Black "Draskovic, Luka"]
[Result "1/2-1/2"]
[ECO "C55"]
[WhiteElo "2584"]
[BlackElo "2481"]
[Annotator "TA"]
[PlyCount "101"]
[EventDate "2024.02.06"]
[EventType "swiss"]
[EventCountry "MNE"]
[SourceTitle "playchess.com"]
[Source "ChessBase"]
[SourceQuality "1"]
[TimeControl "40/5400+30:1800+30"]

{[%evp 37,101,31,18,3,54,36,48,41,31,27,18,39,26,12,16,9,34,29,44,0,0,0,22,0,12,0,43,8,36,12,48,21,38,6,67,45,78,0,0,-7,17,16,15,0,0,0,0,0,0,0,0,0,0,0,0,-12,-12,-126,-8,-8,0,-2,0,0,0,-2]} 1. e4 {[%emt 0:00:59]} e5 2. Nf3 {[%emt 0:01:50]} Nc6 {[%emt 1:31:30]} 3. Bc4 {[%emt 0:04:47]} Nf6 {[%emt 0:00:00]} 4. d3 {[%emt 0:00:02]} Be7 {[%emt 0:00:00]} 5. O-O {[%emt 0:00:50]} O-O {[%emt 0:00:00]} 6. a4 {[%emt 0:00:02]} d6 {[%emt 0:00:00] C55: Two Knights: 4 d3, 4 d4 exd4 5 e5 and Max Lange Attack.} 7. a5 {[%emt 0:00:24]} Be6 {[%emt 0:00:00]} 8. Nbd2 {[%emt 0:01:15]} Qd7 {[%emt 0:00:00]} 9. a6 $146 {[%emt 0:01:02]} ({Predecessor:} 9. Re1 h6 10. Nf1 Rfe8 11. Ng3 Bf8 12. a6 bxa6 13. Bxa6 Reb8 14. c3 Bb3 15. Qe2 {1-0 Strohhaeker,R (2393)-Halt,D (2044) Neuhausen OBM op 2008 (6)}) 9... b6 {[%emt 0:00:00]} 10. Bb5 {[%emt 0:00:59]} Qe8 {[%emt 0:00:00]} 11. Re1 {[%emt 0:14:57]} Bd7 {[%emt 0:00:00]} 12. c3 {[%emt 0:00:56]} Nd4 {[%emt 0:00:00]} 13. Bxd7 {[%emt 0:02:13]} Nxf3+ {[%emt 0:00:00]} 14. Nxf3 {[%emt 0:00:02]} Nxd7 {[%emt 0:00:00]} 15. d4 {[%emt 0:00:05]} Qc8 {[%emt 0:00:00]} 16. Be3 {[%emt 0:01:34]} c6 {[%emt 0:00:00]} 17. Qd3 {[%emt 0:00:56]} Qc7 {[%emt 0:00:00]} 18. b4 {[%emt 0:01:06]} Rfe8 {[%emt 0:00:00]} 19. Red1 {[%emt 0:16:21]} Rad8 {[%emt 0:00:00]} 20. Qc4 {[%emt 0:00:08]} b5 {[%emt 0:00:00]} (20... Nf6 $11) 21. Qe2 $14 {[%emt 0:03:22]} exd4 {[%emt 0:00:00]} 22. cxd4 {[%emt 0:01:48]} Nb6 {[%emt 0:00:00]} 23. d5 {[%emt 0:04:22]} Bf6 {[%emt 0:00:00]} 24. Rac1 {[%emt 0:04:20]} Nc4 {[%emt 0:00:00]} 25. Rxc4 {[%emt 0:06:40]} bxc4 {[%emt 0:00:00]} 26. Qxc4 {[%emt 0:00:03]} c5 {[%emt 0:00:00]} 27. bxc5 {[%emt 0:00:32]} dxc5 {[%emt 0:00:00]} 28. Nd2 {[%emt 0:05:59]} (28. Qxc5 $2 {too greedy.} Qxc5 29. Bxc5 Rxe4 30. Bxa7 Ra4 $19 (30... Rd6 31. g3 $17)) (28. Bxc5 $2 Be7 29. e5 Bxc5 $19 (29... Qxc5 $2 30. Qe4 $19)) 28... Qa5 {[%emt 0:00:00]} 29. Bxc5 {[%emt 0:02:10]} Rb8 {[%emt 0:00:52]} 30. Bxa7 {[%emt 0:06:14]} Ra8 {[%emt 0:01:47]} 31. Be3 {[%emt 0:01:17]} Rxa6 {[%emt 0:00:28]} 32. Qd3 {[%emt 0:11:35]} Qa4 {[%emt 0:00:37]} 33. Rc1 {[%emt 0:00:37]} (33. Nb3 $5 Rb8 (33... Rxe4 34. Nc5 $16) 34. Rc1 $14 (34. Nc5 Qxd1+ 35. Qxd1 Ra1 $11)) 33... Raa8 {[%emt 0:01:09]} 34. g3 {[%emt 0:00:09]} h5 {[%emt 0:02:29]} 35. h4 {[%emt 0:00:19]} Qd7 {[%emt 0:04:12]} (35... Rec8 $11 36. Nc4 Rab8) 36. Kg2 {[%emt 0:00:06]} Qg4 {[%emt 0:00:37]} 37. f3 {[%emt 0:01:56]} (37. d6 $16) 37... Qd7 $11 {[%emt 0:00:08]} 38. Rc2 {[%emt 0:01:08]} Ra1 {[%emt 0:03:03]} 39. Nb3 {[%emt 0:00:13]} Ra3 {[%emt 0:01:15]} 40. Bc1 {[%emt 0:00:00]} Raa8 {[%emt 0:00:00]} 41. Nc5 {[%emt 0:02:33]} Qa7 {[%emt 0:02:31]} 42. Be3 {[%emt 0:03:16]} Qa1 {[%emt 0:01:11]} 43. d6 {[%emt 0:03:42]} Ra2 {[%emt 0:01:15]} 44. Bf2 {[%emt 0:07:45]} Rxc2 {[%emt 0:02:49]} 45. Qxc2 {[%emt 0:00:01]} Ra8 {[%emt 0:03:36]} 46. d7 {[%emt 0:02:26]} Ra2 {[%emt 0:12:36]} 47. Qb3 {[%emt 0:00:01]} (47. Qc4 $1 $11 {remains equal.}) 47... Qb2 {[%emt 0:02:55]} (47... Rd2 $17 48. Qe3 Qb2) 48. Qxb2 $11 {[%emt 0:06:55]} Rxb2 {[%emt 0:00:03]} 49. Kf1 {[%emt 0:00:31]} Rb1+ {[%emt 0:03:32]} 50. Ke2 {[%emt 0:00:24]} Rb2+ {[%emt 0:00:06]} 51. Kf1 {[%emt 0:00:13]} 1/2-1/2

[Event "76th Montenegro Championship 2024"]
[Site "Podgorica"]
[Date "2024.02.10"]
[Round "5.2"]
[White "Sukovic, Andrej"]
[Black "Petrov, Nikita"]
[Result "0-1"]
[ECO "D13"]
[WhiteElo "2339"]
[BlackElo "2563"]
[Annotator "TA"]
[PlyCount "66"]
[EventDate "2024.02.06"]
[EventType "swiss"]
[EventCountry "MNE"]
[SourceTitle "playchess.com"]
[Source "ChessBase"]
[SourceQuality "1"]
[TimeControl "40/5400+30:1800+30"]

{[%evp 11,66,15,21,24,17,12,22,13,14,10,18,2,0,0,0,-26,-30,-56,-21,-21,-21,-66,-73,-72,-75,-73,-76,-107,-90,-126,-134,-195,-182,-519,-520,-1066,-1056,-1042,-1042,-1353,-1287,-1137,-951,-958,-954,-1545,-1453,-1290,-1477,-1617,-1355,-1767,-1796,-2503,-2566,-3059,-2491]} 1. c4 {[%emt 0:00:18]} c6 {[%emt 1:31:00]} 2. d4 {[%emt 0:04:14]} d5 {[%emt 0:00:00]} 3. cxd5 {[%emt 0:00:05]} cxd5 {[%emt 0:00:00]} 4. Nc3 {[%emt 0:00:05]} Nf6 {[%emt 0:00:00]} 5. Nf3 {[%emt 0:00:17]} Nc6 {[%emt 0:00:00]} 6. Bf4 {[%emt 0:01:26]} Nh5 {[%emt 0:00:00]} 7. Bd2 {[%emt 0:05:30]} e6 {[%emt 0:00:00]} 8. e3 {[%emt 0:01:12]} Bd6 {[%emt 0:00:00]} 9. Rc1 {[%emt 0:13:29][%cal Of3e5] The position is equal.} (9. Ne5 {is interesting.} g6 10. Nb5 Be7 11. Be2) 9... O-O {[%emt 0:00:00]} 10. Bd3 {[%emt 0:06:33]} f5 {[%emt 0:00:00]} 11. O-O {[%emt 0:09:24]} Nf6 {[%emt 0:00:00]} 12. a3 {[%emt 0:09:03]} Ne4 {[%emt 0:00:00]} 13. Na2 {[%emt 0:00:12]} Bd7 {[%emt 0:00:00]} 14. Nb4 {[%emt 0:01:59]} Qb6 {[%emt 0:00:00]} 15. Nxc6 {[%emt 0:03:56]} Bxc6 {[%emt 0:00:00]} 16. Ne5 {[%emt 0:07:46]} Bxe5 {[%emt 0:00:00]} ({Reject} 16... Qxb2 17. Bxe4 fxe4 18. Rb1 Qxa3 19. Ra1 $11) 17. dxe5 {[%emt 0:00:15] Black keeps a firm grip on the game.} Qxb2 {[%emt 0:00:00]} 18. Bb4 {[%emt 0:00:14]} Rfd8 {[%emt 0:00:00]} (18... Rfe8 {simplifies} 19. Bxe4 dxe4 20. Bd6 Rac8) 19. f4 {[%emt 0:12:07] [#] Threatens to win with Rb1.} d4 {[%emt 0:00:00] Black is much more active.} 20. Rc2 {[%emt 0:00:10]} Qb3 {[%emt 0:00:00]} 21. Qe2 {[%emt 0:02:17]} a5 {[%emt 0:00:00]} 22. Bc4 $2 {[%emt 0:12:05]} (22. Be7 {is more resistant.} Re8 23. Rb2) 22... d3 $19 {[%emt 0:00:00] Black is clearly winning.} (22... Qxe3+ 23. Qxe3 dxe3 24. Bxe6+ Kh8 25. Be1 $19) 23. Qh5 {[%emt 0:00:04]} (23. Bxb3 $142 dxe2 24. Bxe6+ Kh8 25. Rxe2 axb4 26. axb4) 23... Qxc2 {[%emt 0:00:00]} 24. Bxe6+ {[%emt 0:00:05]} Kh8 {[%emt 0:00:00]} 25. Bxf5 {[%emt 0:00:54]} Nf6 {[%emt 0:00:00]} ({And not} 25... axb4 26. Qxh7#) 26. Qh3 {[%emt 0:00:19]} Qxg2+ {[%emt 0:00:00]} 27. Qxg2 {[%emt 0:00:11]} Bxg2 {[%emt 0:00:00]} 28. exf6 {[%emt 0:02:13]} axb4 {[%emt 0:00:00]} 29. Kxg2 {[%emt 0:00:43]} bxa3 {[%emt 0:00:00] [#] aiming for ...d2. KRR-KRB} 30. f7 {[%emt 0:02:44]} d2 {[%emt 0:00:00]} 31. Bc2 {[%emt 0:00:15]} g6 {[%emt 0:00:00] Strongly threatening ...a2.} 32. Ra1 {[%emt 0:00:35]} Kg7 {[%emt 0:00:00][%cal Od8c8] ...Rdc8! is the strong threat.} 33. Bb3 {[%emt 0:00:07]} Rd3 {[%emt 0:00:00][%csl LRb3,LRe3] Weighted Error Value: White=1.12/Black=0.14 (very precise) .  Mistake:       	White=2     	---        Inaccurate:     	White=5     	Black=1      OK:         	White=5     	Black=6      Best:        	White=1     	Black=5} 0-1